Cogmind - Beta 9.3 @@@ ROGUE MODE // 2019.12.18 @ 03:56:43 // Winter2019/RPGLIKE Player: HybriD Result: Self-destructed Performance ------------- Evolutions (1) 500 Regions Visited (2) 400 Robots Destroyed (14) 70 Value Destroyed (168) 168 Prototype IDs (2) 40 Alien Tech Used (0) 0 Bonus (0) 0 TOTAL SCORE: 1178 Bonus ------- None Cogmind --------- Core Integrity 728/1000 Matter 273/300 Energy 265/265 System Corruption 0% Temperature Cool (0) Movement Flying (117) Ox1 Location -9/Materials Parts ------- > --- POWER (2) -------- Improved Ion Engine > --- PROPULSION (2) --- Flight Unit Flight Unit > --- UTILITY (2) ------ Light Armor Plating > --- WEAPON (2) ------- Beam Rifle Light Assault Rifle > --- INVENTORY (0) ---- (None) Peak State ------------ > --- POWER ------------ Ion Engine Improved Ion Engine > --- PROPULSION ------- Flight Unit Flight Unit > --- UTILITY ---------- Light Armor Plating > --- WEAPON ----------- Beam Rifle Light Assault Rifle > --- INVENTORY -------- (None) [Rating: 9] Favorites ----------- Power Ion Engine Engine Ion Engine Propulsion Compact Wheel Wheel Compact Wheel Flight Unit Flight Unit Utility Light Armor Plating Device Improved Terrain Scanner Protection Light Armor Plating Weapon Medium Laser Energy Gun Medium Laser Ballistic Gun Light Assault Rifle Build | -11 -10 -9 ------- Run | Scr Mat Mat Slots Evolved 4 | . . 4 Power 1 | . . 1 Propulsion 1 | . . 1 Utility 1 | . . 1 Weapon 1 | . . 1 Parts Attached 13 | 4 2 7 Power 2 | 1 . 1 Engine 2 | 1 . 1 Core . | . . . Reactor . | . . . Propulsion 5 | 1 . 4 Treads . | . . . Leg . | . . . Wheel 2 | 1 . 1 Hover . | . . . Flight 3 | . . 3 Utility 3 | 1 2 . Device 1 | 1 . . Storage . | . . . Processor . | . . . Hackware . | . . . Protection 2 | . 2 . Artifact . | . . . Weapon 3 | 1 . 2 Energy Gun 2 | 1 . 1 Energy Cannon . | . . . Ballistic Gun 1 | . . 1 Ballistic Cannon . | . . . Launcher . | . . . Special Weapon . | . . . Impact Weapon . | . . . Slashing Weapon . | . . . Piercing Weapon . | . . . Special Melee Weapon . | . . . Unidentified Prototypes . | . . . Parts Lost . | . . . Power . | . . . Propulsion . | . . . Utility . | . . . Weapon . | . . . Highest Loss Streak . | . . . Average Slot Usage (%) 97 | . 98 96 Engine 24 | . 25 23 Wheel 23 | . 25 21 Flight 1 | . . 2 Device 5 | . 11 . Protection 18 | . 11 23 Energy Gun 23 | . 25 23 Ballistic Gun 1 | . . 1 Naked Turns . | . . . Heaviest Build 12 | 8 10 12 Greatest Support 21 | 16 16 21 Greatest Overweight (x) . | . . . Average Overweight (x) . | . . . Largest Inventory Capacity . | . . . Average Capacity . | . . . Most Carried . | . . . Average Carried . | . . . Final Capacity . | . . . Final Carried . | . . . Class Distribution -------------------- 100% | Mutant Dominant Class ---------------- Mutant | -10/Materials Mutant | -9/Materials Resources | -11 -10 -9 ----------- Run | Scr Mat Mat Matter Collected 303 | 240 . 63 Remotely . | . . . Salvage Created 280 | 96 15 169 Parts 30 | 5 7 18 Haulers Intercepted . | . . . Recyclers Shooed 1 | 1 . . Parts Field Recycled . | . . . Retrieved Matter . | . . . Parts Self-Destructed . | . . . Prevented . | . . . Kills | -11 -10 -9 ------- Run | Scr Mat Mat Combat Hostiles Destroyed 12 | . 3 9 Guns 12 | . 3 9 Classes Destroyed 4 | 2 1 1 Tunneler 1 | 1 . . Recycler 1 | 1 . . Swarmer 11 | . 3 8 Sentry 1 | . . 1 Best Kill Streak 5 | 2 3 5 Combat Bots Only 5 | . 3 5 Max Kills in Single Turn 1 | 1 1 1 Gunslinging . | . . . Exploded . | . . . Melee . | . . . Uniques/NPCs Destroyed . | . . . Combat | -11 -10 -9 -------- Run | Scr Mat Mat Damage Taken 332 | . 16 316 Core 272 | . 12 260 Absorbed by Shields . | . . . Redirected to Core 205 | . 12 193 Core Remaining (%) 99 | 100 98 . Volleys Fired 33 | 4 3 26 Largest 1 | 1 1 1 Hottest 56 | 50 50 56 Shots Fired 33 | 4 3 26 Gun 33 | 4 3 26 Cannon . | . . . Launcher . | . . . Special . | . . . Kinetic . | . . . Thermal 33 | 4 3 26 Explosive . | . . . Electromagnetic . | . . . Robot Hit Streak 9 | 4 7 9 Robot Miss Streak 3 | . . 3 Penetration Max . | . . . Secondary Targets . | . . . Shots Hit Robots 26 | 4 3 19 Core Hits 16 | 3 3 10 Critical Hits . | . . . Critical Kills . | . . . Critical Parts Destroyed . | . . . Melee Attacks . | . . . Impact . | . . . Slashing . | . . . Piercing . | . . . Sneak Attacks . | . . . Combat Hostiles . | . . . Follow-up Attacks . | . . . Damage Inflicted 351 | 50 36 265 Guns 351 | 50 36 265 Cannons . | . . . Explosions . | . . . Melee . | . . . Ramming . | . . . Kinetic . | . . . Thermal 351 | 50 36 265 Explosive . | . . . Electromagnetic . | . . . Impact . | . . . Slashing . | . . . Piercing . | . . . Highest Corruption . | . . . Average Corruption . | . . . Corruption Purged . | . . . Overload Shots . | . . . Overflow Damage . | . . . Projectiles . | . . . Explosions . | . . . Melee . | . . . Knockbacks . | . . . Impact . | . . . Kinetic . | . . . Secondary . | . . . Self-Inflicted Damage . | . . . Shots . | . . . Rammed . | . . . Targets Rammed . | . . . Kicked . | . . . Crushed . | . . . Highest Temperature 306 | 40 50 306 Average Temperature 114 | 22 30 132 Received Heat Transfer 27 | . . 27 Siege Activations . | . . . Robots Corrupted . | . . . Combat Hostiles . | . . . Parts Fried . | . . . Impact Corruptions . | . . . Robots Melted . | . . . Combat Hostiles . | . . . Parts Melted 2 | . . 2 Heat Transferred 962 | 148 111 703 Parts Sabotaged . | . . . Parts Stolen . | . . . Parts Stripped . | . . . Power Chain Reactions . | . . . Missiles Intercepted . | . . . Alert | -11 -10 -9 ------- Run | Scr Mat Mat Peak Influence 264 | 10 95 264 Average Influence 105 | 5 58 162 Maximum Alert Level 1 | . . 1 Low Security (%) 82 | 100 100 64 Level 1 17 | . . 35 Level 2 . | . . . Level 3 . | . . . Level 4 . | . . . Level 5 . | . . . High Security . | . . . Max Security . | . . . Squads Dispatched . | . . . Investigation . | . . . Extermination . | . . . Reinforcement . | . . . Assault . | . . . Garrison . | . . . Intercept . | . . . Construction Impeded . | . . . Haulers Reinforced . | . . . Stealth | -11 -10 -9 --------- Run | Scr Mat Mat Distress Signals . | . . . Communications Jammed . | . . . Distress Signals . | . . . Times Spotted 14 | . 4 10 Peak Tracking Total 5 | . 3 5 Tactical Retreats 1 | . . 1 Traps | -11 -10 -9 ------- Run | Scr Mat Mat Traps Triggered . | . . . Indirectly . | . . . Trap Hack Attempts . | . . . Triggered . | . . . Disarmed . | . . . Reprogrammed . | . . . Reused . | . . . Traps Extracted . | . . . Installed . | . . . Triggered . | . . . Machines | -11 -10 -9 ---------- Run | Scr Mat Mat Machines Disabled . | . . . Max in Single Turn . | . . . Machines Sabotaged . | . . . Garrisons Compromised . | . . . Overloaded Fab Kills . | . . . Fab Network Shutdowns . | . . . Hacking | -11 -10 -9 --------- Run | Scr Mat Mat Machines Accessed 5 | . 4 1 Terminals 2 | . 2 . Fabricators . | . . . Repair Stations 1 | . 1 . Recycling Units 1 | . 1 . Scanalyzers 1 | . . 1 Garrison Access . | . . . Total Hacks 10 | . 9 1 Successful 6 | . 6 . Failed 4 | . 3 1 Catastrophic . | . . . Database Lockouts . | . . . Manual 2 | . . 2 Terminals 4 | . 4 . Fabricators . | . . . Repair Stations 1 | . 1 . Recycling Units 4 | . 4 . Scanalyzers 1 | . . 1 Garrison Access . | . . . Terminal Hacks 3 | . 3 . Prototype ID Bank 1 | . 1 . Locate Traps 2 | . 2 . Fabricator Hacks . | . . . Repair Station Hacks . | . . . Recycling Unit Hacks 3 | . 3 . Process 1 | . 1 . Report Inventory 1 | . 1 . Retrieve Components 1 | . 1 . Scanalyzer . | . . . Garrison Access Hacks . | . . . Unauthorized Hacks . | . . . Terminals . | . . . Fabricators . | . . . Repair Stations . | . . . Recycling Units . | . . . Scanalyzers . | . . . Garrison Access . | . . . Data Cores Recovered . | . . . Used . | . . . Hacking Detections 3 | . 3 . Full Trace Events . | . . . Feedback Events . | . . . Feedback Blocked . | . . . Robot Schematics Acquired . | . . . Robots Built . | . . . Matter . | . . . Time . | . . . Total Robot Build Rating . | . . . Part Schematics Acquired . | . . . Parts Built . | . . . Matter . | . . . Time . | . . . Total Part Build Rating . | . . . Parts Repaired . | . . . Time . | . . . Parts Recycled . | . . . Recycled Matter 35 | . 35 . Retrieved Matter . | . . . Retrieved Components . | . . . Parts Scanalyzed . | . . . Part Schematics Acquired . | . . . Parts Damaged . | . . . Bothacking | -11 -10 -9 ------------ Run | Scr Mat Mat Used RIF Installer . | . . . Robots Hacked . | . . . Non-combat . | . . . Combat . | . . . Robot Hacks Applied . | . . . Relay Couplers Released . | . . . Robots Rewired . | . . . Allies Hacked . | . . . Hacks Repelled . | . . . Allies | -11 -10 -9 -------- Run | Scr Mat Mat Total Allies . | . . . Largest Group . | . . . Highest-Rated Group . | . . . Highest-Rated Ally . | . . . Total Orders . | . . . Ally Attacks . | . . . Total Damage . | . . . Kills . | . . . Allies Corrupted . | . . . Allies Melted . | . . . Intel | -11 -10 -9 ------- Run | Scr Mat Mat Robot Analysis Total . | . . . Derelict Logs Recovered . | . . . Drone Launches . | . . . Drone Recoveries . | . . . Exploration | -11 -10 -9 ------------- Run | Scr Mat Mat Turns Passed 389 | 41 153 195 Spaces Moved 293 | 28 137 128 Core 1 | 1 . . Treads . | . . . Legs . | . . . Wheels 279 | 27 137 115 Hover . | . . . Flight 13 | . . 13 Fastest Speed 37 | 50 100 37 Average Speed 97 | 98 100 93 Slowest Speed 100 | 100 100 100 Overloaded Moves . | . . . Propulsion Burnouts . | . . . Robots Hopped . | . . . Cave-ins Triggered . | . . . Exploration Rate (%) 16 | 2 35 11 Regions Visited 2 Branch Regions . Pre-discovered Areas . | . . . Known Exits Taken . | . . . Unknown Exits Taken 2 | 1 1 . Scrap Searched . | . . . Spaces Dug . | . . . Terrain Destroyed . | . . . Melee . | . . . Projectile . | . . . AOE . | . . . Actions | -11 -10 -9 --------- Run | Scr Mat Mat Total 361 | 35 150 176 Wait 17 | . 7 10 Move 291 | 27 136 128 Hop . | . . . Pick Up . | . . . Fast Attach 13 | 4 2 7 Attach . | . . . Detach . | . . . Swap . | . . . Drop 7 | . 2 5 Fire 33 | 4 3 26 Melee . | . . . Ram . | . . . Kick . | . . . Crush . | . . . Escape Stasis . | . . . Rewire . | . . . Trap . | . . . Miscellaneous . | . . . Route ------- -11/Scrapyard -10/Materials -9/Materials History --------- Turn | Location | Event 13 | -11/Scrapyard | Discovered new exit (range 16) 42 | -11/Scrapyard | Entered Materials 148 | -10/Materials | Discovered new exit (range 10) 195 | -10/Materials | Entered another Materials area 197 | -9/Materials | Reached level 2 316 | -9/Materials | Build established: Mutant 361 | -9/Materials | Upgraded with Power slot (x1) 361 | -9/Materials | Upgraded with Propulsion slot (x1) 361 | -9/Materials | Upgraded with Utility slot (x1) 361 | -9/Materials | Upgraded with Weapon slot (x1) 390 | -9/Materials | Self-destructed Last Messages --------------- 00361_ Upgraded: Propulsion Slot (+1) 00361_ Upgraded: Utility Slot (+1) 00361_ Upgraded: Weapon Slot (+1) 00361_ Upgraded: Core Integrity (+400) 00361_ Upgraded: Heat Dissipation (+18) 00361_ Upgraded: Energy Generation (+15) 00361_ Upgraded: Mass Support (+5) 00361_ Upgraded: Sensor Range (+2) 00362_ Acquired Lgt. Assault Rifle. 00365_ Acquired Flight Unit. 00366_ Dropped Com. Wheel. 00367_ Acquired Com. Wheel. 00379_ Dropped Com. Wheel. 00380_ Acquired Flight Unit. 00381_ Acquired 18 matter. 00382_ Acquired 15 matter. 00383_ Dropped Flight Unit. 00383_ Acquired Flight Unit. 00388_ Acquired Imp. Ion Engine. 00390_ Dropped Ion Engine. Map ----- +----------------------------------------------------+ | ????????????????????????????????????????????? | | ????????????????????????????????????????????? | | ????????????????????????????????????????????? | | ????????????????????????????????????????????? | | ????????????????????????????????????????????? | | ????????????????????????????????????????????? | | ????????????????????????????????????????????? | | ????????????????????????????????????????????? | | ????????????????????????????????????????????? | | ????????????????????????????????????????????? | | ????????????????????????????????????????????? | | ????????????????????????????????????????????? | | ????????????????????????????????????????????? | | ????????????????????????????????????????????? | | ????????????????????????????????????????????? | | ????????????????????????????????????????????? | | ????????????????????????????????????????????? | | ????????????????????????????????????????????? | | ????????????????????????????##??????????????? | | ???????????????????????????==#??????????????? | | ????????????? ???????????!!==#??????????????? | | ????????????? ########?? #??????????????? | | ????????????? # ## #??????????????? | | ????????????? # %u=* = +????????? | | ????????????? # %%#########??????????????? | | ????????????? # !@#??????????????????????? | | ??########### # =#??????????????????????? | | ??# # # #??????????????????????? | | ??# """ # # #??????????????????????? | | ??# """ """ # # #??????????????????????? | | ??# "S """ # # #??????????????????????? | | ??# """ """ # # #??????????????????????? | | ??# "" # # = ###########????????????? | | ??# # # * ## #????????????? | | ??# [ # # = ##"S """ #????????????? | | ??#########+# ####+####""" """ #????????????? | | ????# # "" """ #????????????? | | ????# = + #????????????? | | ????# = % # """ #????????????? | | ????# #####+######### """ #????????????? | | ????# #[ * == #???# """ #????????????? | | ????# #%=%= #???# #????????????? | | ????# #*""" """ #???##########????????????? | | ????# # """ """ #?????????????????????????? | | ????# + """ """ #?????????????????????????? | | ????# # #?????????????????????????? | | ????# # #?????????????????????????? | | ????# # #?????????????????????????? | | ????# ###########?????????????????????????? | | ????# ########????????????????????????????? | +----------------------------------------------------+ Best States ------------- Heat Dissipation 43 Energy Generation 32 Energy Capacity 415 Matter Stores 300 Matter Capacity 300 Sight Range 16 Robot Scan Range 2 Terrain Scan Range 16 Terrain Scan Density 10 Armor Coverage 150 Propulsion Shielding 33 Evasion (%) 62 Item Schematics ----------------- None Robot Schematics ------------------ None Fabricated ------------ Nothing Alien Tech Used ----------------- None Achievements -------------- None Challenges ------------ None RPGLIKE | -11 -10 -9 --------- Run | Scr Mat Mat Levels Raised 1 | . . 1 XP Earned 5900 | 3000 350 2550 XP Spent 4490 | . . 4490 Upgrades 20 | . . 20 Power Slot 1 | . . 1 Propulsion Slot 1 | . . 1 Utility Slot 1 | . . 1 Weapon Slot 1 | . . 1 Core Integrity 8 | . . 8 Heat Dissipation 3 | . . 3 Energy Generation 3 | . . 3 Mass Support 1 | . . 1 Sensor Range 1 | . . 1 Protomatter Created 62 | . 27 35 Protomatter Decayed 40 | . 27 13 Game ------ Seed SlugRefineryWheel Manual? 0 Play Time 00:13:09 Cumulative 89.7 hours Start 2019.12.18 @ 03:43:00 End 2019.12.18 @ 03:56:43 Sessions 1 Manual Loads 0 Difficulty Rogue Special Mode Winter2019/RPGLIKE Game No. 83 Rogue 83 Adventurer 0 Explorer 0 Win Type - Total 0 Types 0/0/0/0/0/0/0 Lore% 44 Gallery% 60 Achievement% 26 Wizard Run 0 Options --------- ASCII 0 Keyboard 0 Movement Mouse Keybinds 0 Fullscreen 2 Font 18/Terminus Map View 76x50 Tactical HUD 1 Map Filters NONE Filters NONE Steam 1 RUN: 7e7b4b0e-d290-4f8d-a956-1cc04c4b926c